[Event "Superbet Blitz Poland 2022"]
[Site "Warsaw"]
[Date "2022.05.22"]
[Round "9.2"]
[White "Rapport, Richard"]
[Black "So, Wesley"]
[Result "0-1"]
[ECO "C47"]
[WhiteElo "2776"]
[BlackElo "2766"]
[Annotator "TA"]
[PlyCount "126"]
[EventDate "2022.05.22"]
[EventType "tourn"]
[EventCountry "POL"]
[SourceTitle "playchess.com"]
[Source "ChessBase"]
[SourceQuality "1"]
[TimeControl "300+2"]

{[%evp 9,126,0,0,0,12,5,10,12,5,-17,0,-16,6,0,-10,-18,0,-25,-22,-25,-22,-44,0,-16,4,-26,0,-7,0,0,0,0,11,-53,-61,-80,9,8,8,8,9,0,0,0,0,0,21,0,4,0,11,0,0,0,0,0,3,2,2,2,9,9,16,2,37,32,31,31,54,54,54,26,26,0,0,0,0,0,0,0,0,-8,-8,-8,-8,-31,-15,-31,-31,-64,-68,-68,-61,-61,-75,-383,-359,-304,-364,-435,-429,-640,-623,-866,-847,-828,-781,-1358,-1187,-29988,-29984,-29986,-29987,-29993,-29994,-29995,-29996,-29996,-29997]} 1. e4 {[%emt 0:00:03]} e5 {[%emt 0:00:01]} 2. Nf3 {[%emt 0:00:01]} Nc6 {[%emt 0:00:01]} 3. Nc3 {[%emt 0:00:02]} Nf6 {[%emt 0:00:01]} 4. a4 {[%emt 0:00:01]} d5 {[%emt 0:00:09]} 5. Bb5 {[%emt 0:00:01] [#]} d4 $146 {[%emt 0:00:43]} ({Predecessor:} 5... Nxe4 6. Nxe5 Qf6 7. Nf3 Be6 8. Qe2 Qg6 9. Nh4 Qf6 10. Nf3 Qg6 11. Nxe4 dxe4 {0-1 (41) Van Foreest,J (2629)-Smeets,J (2608) Amstelveen 2017}) 6. Ne2 {[%emt 0:00:02] C47: Scotch Four Knights and Four Knights with 4 g3.} Bd6 {[%emt 0:00:02]} 7. d3 {[%emt 0:00:06]} O-O {[%emt 0:00:01]} 8. Bxc6 {[%emt 0:00:04] The position is equal.} bxc6 {[%emt 0:00:01]} 9. h3 {[%emt 0:00:09]} c5 {[%emt 0:00:08][%cal Oc5c4]} 10. b3 {[%emt 0:00:03]} Ne8 {[%emt 0:00:16][%cal Bf6e8,Be8g7,Bg7e6,Be6f4][%mdl 32]} 11. g4 {[%emt 0:00:12]} g6 {[%emt 0:00:05]} 12. Ng3 {[%emt 0:00:05]} Ng7 {[%emt 0:00:02]} 13. Bh6 {[%emt 0:00:05]} Rb8 {[%emt 0:00:03]} 14. Rg1 {[%emt 0:00:10][%cal Og3f5]} Kh8 {[%emt 0:00:02]} 15. Kf1 {[%emt 0:00:12]} f6 {[%emt 0:00:04]} 16. Nd2 {[%emt 0:00:25]} Rf7 {[%emt 0:00:09]} 17. Qf3 {[%emt 0:00:17]} Ne6 {[%emt 0:00:06]} 18. h4 {[%emt 0:00:06][%cal Bh3h4,Bh4h5][%mdl 32]} Bf8 {[%emt 0:00:09]} 19. Bxf8 {[%emt 0:00:02]} Qxf8 {[%emt 0:00:00]} 20. Rh1 {[%emt 0:00:12]} Bb7 {[%emt 0:00:04][%cal Of6f5]} 21. Qe2 {[%emt 0:00:21]} ({White should try} 21. h5 $11) 21... Nf4 $15 {[%emt 0:00:06]} 22. Qe1 {[%emt 0:00:03]} Re8 {[%emt 0:00:32] 0x0.000a5ab7349cdp-1022s more active pieces.} (22... h5 $17 23. gxh5 gxh5) 23. h5 $11 {[%emt 0:00:03]} g5 {[%emt 0:00:02]} 24. Nc4 {[%emt 0:00:08]} Ba6 {[%emt 0:00:11]} 25. Nb2 {[%emt 0:00:16]} Qd6 {[%emt 0:00:04]} 26. Nf5 {[%emt 0:00:04]} Qb6 {[%emt 0:00:01]} 27. f3 {[%emt 0:00:07]} Qb4 {[%emt 0:00:05]} 28. Kf2 {[%emt 0:00:07]} Rb8 {[%emt 0:00:02]} 29. a5 {[%emt 0:00:06]} Bb5 {[%emt 0:00:07]} 30. a6 {[%emt 0:00:14]} Rff8 {[%emt 0:00:21]} 31. Ra5 {[%emt 0:00:02]} Ne6 {[%emt 0:00:10]} 32. Ne7 {[%emt 0:00:08]} c6 {[%emt 0:00:03]} 33. Nf5 {[%emt 0:00:41]} Rfd8 {[%emt 0:00:08] Inhibits Nd6.} 34. Kg3 {[%emt 0:00:09]} Kg8 {[%emt 0:00:03]} 35. Ra2 {[%emt 0:00:15]} Kf8 {[%emt 0:00:08]} 36. Qe2 {[%emt 0:00:19]} Nf4 {[%emt 0:00:05] The board is on fire.} 37. Qf2 {[%emt 0:00:02]} Ne6 {[%emt 0:00:21]} 38. Rha1 {[%emt 0:00:01]} Nf4 {[%emt 0:00:03]} 39. Kh2 {[%emt 0:00:01]} Ne6 {[%emt 0:00:02]} 40. Ng3 {[%emt 0:00:02]} Rb6 {[%emt 0:00:11]} 41. Nf1 {[%emt 0:00:05]} Nc7 {[%emt 0:00:04]} 42. Nd2 {[%emt 0:00:03]} Rxa6 {[%emt 0:01:30]} 43. Rxa6 {[%emt 0:00:02]} Bxa6 {[%emt 0:00:00]} 44. Ra2 {[%emt 0:00:09]} Ra8 {[%emt 0:00:00]} 45. Ndc4 {[%emt 0:00:05]} Bb5 {[%emt 0:00:00]} 46. Na5 {[%emt 0:00:02]} Ne6 {[%emt 0:00:00]} 47. Nd1 {[%emt 0:00:02] Pair of Knights!} Nf4 {[%emt 0:00:00]} 48. Kg3 {[%emt 0:00:03]} Rb8 {[%emt 0:00:00] Threatens to win with ...Rb6.} 49. Kh2 {[%emt 0:00:05]} Rb6 {[%emt 0:00:00] [#] aiming for ...Ra6.} 50. Nc4 {[%emt 0:00:27]} Ra6 $36 {[%emt 0:00:00][%mdl 2048] Black has good play.} 51. Rxa6 {[%emt 0:00:01]} Bxa6 {[%emt 0:00:00]} 52. Nd6 {[%emt 0:00:03][%mdl 8192] Loses the game.} (52. Ndb2 $17) 52... Ke7 $19 {[%emt 0:00:00]} 53. Nf5+ {[%emt 0:00:01]} Kd7 {[%emt 0:00:00]} 54. Nb2 {[%emt 0:00:02]} Bb5 {[%emt 0:00:00][%cal Ba6b5,Bb5a4,Ba4d1][%mdl 32]} 55. Nh6 {[%emt 0:00:06]} (55. h6 $142) 55... a5 {[%emt 0:00:00]} 56. Nd1 {[%emt 0:00:01]} a4 {[%emt 0:00:00]} 57. bxa4 {[%emt 0:00:02]} Bxa4 {[%emt 0:00:00] [#] Hoping for ...Qb1.} 58. c3 {[%emt 0:00:07]} dxc3 {[%emt 0:00:00]} 59. Qa2 {[%emt 0:00:01]} Bxd1 {[%emt 0:00:00] Black mates.} 60. Qf7+ {[%emt 0:00:02]} Kc8 {[%emt 0:00:00]} 61. Kg3 {[%emt 0:00:04]} Qd4 {[%emt 0:00:00][%cal Rd4g1]} 62. Qg8+ {[%emt 0:00:02]} Kc7 {[%emt 0:00:02][%cal Rd4g1]} 63. Qf7+ {[%emt 0:00:03]} Kb6 {[%emt 0:00:00] Weighted Error Value: White=0.40/Black=0.09 (flawless)} 0-1

[Event "Superbet Blitz Poland 2022"]
[Site "Warsaw"]
[Date "2022.05.22"]
[Round "9.3"]
[White "Wojtaszek, Radoslaw"]
[Black "Anand, Viswanathan"]
[Result "1/2-1/2"]
[ECO "D38"]
[WhiteElo "2696"]
[BlackElo "2751"]
[Annotator "TA"]
[PlyCount "186"]
[EventDate "2022.05.22"]
[EventType "tourn"]
[EventCountry "POL"]
[SourceTitle "playchess.com"]
[Source "ChessBase"]
[SourceQuality "1"]
[TimeControl "300+2"]

{[%evp 23,186,16,19,14,24,0,19,0,2,0,0,0,0,0,0,0,0,0,0,0,0,0,8,8,0,0,0,0,0,0,0,0,0,0,0,0,0,0,0,0,39,34,81,81,81,81,81,81,100,81,81,81,81,81,81,81,1014,150,150,81,81,81,81,81,81,81,81,81,81,80,80,80,80,80,80,80,80,80,80,66,0,66,66,66,66,66,66,66,66,66,66,66,66,66,66,0,66,0,66,0,66,0,0,0,0,0,2,0,0,0,0,0,0,0,0,0,0,0,0,0,0,0,42,0,0,0,0,0,0,0,0,0,0,0,0,0,0,0,0,0,0,0,0,0,0,0,0,0,0,0,0,0,0,0,0,0,0,0,0,0,0,0,0,0,0]} 1. d4 {[%emt 0:00:01]} Nf6 {[%emt 0:00:01]} 2. c4 {[%emt 0:00:01]} e6 {[%emt 0:00:01]} 3. Nf3 {[%emt 0:00:01]} d5 {[%emt 0:00:01]} 4. Nc3 {[%emt 0:00:01]} Bb4 {[%emt 0:00:02]} 5. Bg5 {[%emt 0:00:02]} h6 {[%emt 0:00:02]} 6. Bxf6 Qxf6 {[%emt 0:00:01]} 7. Qa4+ {[%emt 0:00:04]} Nc6 {[%emt 0:00:01]} 8. e3 {[%emt 0:00:01]} O-O {[%emt 0:00:05]} 9. Be2 {[%emt 0:00:02]} dxc4 {[%emt 0:00:08]} 10. Bxc4 {[%emt 0:00:13]} e5 {[%emt 0:00:42]} 11. O-O {[%emt 0:00:11]} exd4 {[%emt 0:00:02]} 12. Nd5 {[%emt 0:00:05]} Qd6 {[%emt 0:00:01]} 13. Nxb4 {[%emt 0:00:23]} Nxb4 {[%emt 0:00:38]} 14. Nxd4 {[%emt 0:00:02]} c5 {[%emt 0:00:12]} (14... Bd7 $5 {[%cal Rd7a4]} 15. Qb3 c5 $11) 15. Nf3 {[%emt 0:00:36]} Bd7 {[%emt 0:00:40]} 16. Qd1 {[%emt 0:00:39]} Qe7 {[%emt 0:00:06]} 17. a3 {[%emt 0:00:09]} Nc6 {[%emt 0:00:01]} 18. Qc2 {[%emt 0:00:12]} Ne5 {[%emt 0:00:14]} 19. Nxe5 {[%emt 0:00:35]} Qxe5 {[%emt 0:00:02]} 20. Rad1 {[%emt 0:00:02]} Bc6 {[%emt 0:00:06]} 21. Qb3 {[%emt 0:00:40]} Qe7 {[%emt 0:00:50]} 22. Bd5 {[%emt 0:00:07]} Rac8 {[%emt 0:00:09]} 23. Bxc6 {[%emt 0:00:15]} Rxc6 {[%emt 0:00:01]} 24. Rd5 {[%emt 0:00:01]} c4 {[%emt 0:00:33]} 25. Qc3 {[%emt 0:00:06]} Rd8 {[%emt 0:00:07]} 26. Rfd1 {[%emt 0:00:03]} Rxd5 {[%emt 0:00:02]} 27. Rxd5 {[%emt 0:00:02]} Qf6 {[%emt 0:00:21]} 28. Rd4 {[%emt 0:00:20]} b5 {[%emt 0:00:08]} 29. h4 {[%emt 0:00:06]} a6 {[%emt 0:00:10]} 30. Qb4 {[%emt 0:00:27]} h5 {[%emt 0:00:08]} 31. a4 {[%emt 0:00:06]} bxa4 {[%emt 0:00:07]} 32. Qxa4 {[%emt 0:00:02]} c3 {[%emt 0:00:05]} (32... Qe6 $14) 33. bxc3 $16 {[%emt 0:00:04]} g6 {[%emt 0:00:07]} 34. Qa5 {[%emt 0:00:06]} Kg7 {[%emt 0:00:03]} 35. c4 {[%emt 0:00:06]} Rb6 {[%emt 0:00:03]} 36. Qa1 {[%emt 0:00:07]} (36. Rf4 {is more complex.} Qd8 37. Qc3+ Kg8 38. c5) 36... Rb4 {[%emt 0:00:05]} 37. Qc1 {[%emt 0:00:06]} Qf5 {[%emt 0:00:02]} 38. Rd1 {[%emt 0:00:06]} (38. Qc3 {seems wilder.} Rb1+ 39. Rd1+ Kh7 40. Rf1) 38... Qe5 {[%emt 0:00:05]} 39. c5 {[%emt 0:00:02]} Rb7 $2 {[%emt 0:00:02][%mdl 8192]} (39... Rxh4 $2 40. f4 Qe4 41. Rd4 $18) (39... Rb5 $16) 40. Qc4 $2 {[%emt 0:00:03]} (40. c6 $18 {and the rest is easy.} Rb8 41. c7) 40... Rc7 $16 {[%emt 0:00:01]} 41. Qxa6 {[%emt 0:00:04]} (41. c6 $142 {And now Rd7 would win.} Qf6 42. Rc1 (42. Qxa6 Qxc6 43. Qxc6 Rxc6 $16)) 41... Qxc5 {[%emt 0:00:02]} 42. g3 {[%emt 0:00:03]} Qe5 {[%emt 0:00:01]} 43. Qd3 {[%emt 0:00:01]} Qf6 {[%emt 0:00:01]} 44. Qe2 {[%emt 0:00:01]} Rb7 {[%emt 0:00:01]} 45. Kg2 {[%emt 0:00:01]} Rb2 {[%emt 0:00:01]} 46. Rd2 {[%emt 0:00:03]} Qc6+ {[%emt 0:00:01]} 47. Kh2 {[%emt 0:00:03]} Rb1 {[%emt 0:00:01]} 48. Rd1 {[%emt 0:00:02]} Rxd1 49. Qxd1 {[%emt 0:00:01]} Qa6 {[%emt 0:00:04]} 50. Qd4+ {[%emt 0:00:01]} Kg8 {[%emt 0:00:00]} 51. e4 {[%emt 0:00:01]} Qe2 {[%emt 0:00:02]} 52. Kg2 {[%emt 0:00:01]} (52. Qe3 $11 Qxe3 53. fxe3) 52... Qa2 {[%emt 0:00:01]} 53. Qd5 {[%emt 0:00:01]} Qe2 {[%emt 0:00:01]} 54. Qd8+ {[%emt 0:00:03]} Kg7 {[%emt 0:00:01]} 55. Qd4+ {[%emt 0:00:01]} Kg8 {[%emt 0:00:01]} 56. Qe5 {[%emt 0:00:02]} Qd3 {[%emt 0:00:01]} 57. Qf4 {[%emt 0:00:01]} Kg7 {[%emt 0:00:02]} 58. Qf3 {[%emt 0:00:02]} Qd4 {[%emt 0:00:01]} 59. Qf4 {[%emt 0:00:06]} Qd3 {[%emt 0:00:01]} 60. Qe5+ {[%emt 0:00:01]} Kg8 $1 {[%emt 0:00:01]} 61. Qd5 {[%emt 0:00:01]} Qe2 {[%emt 0:00:01]} 62. e5 {[%emt 0:00:01]} (62. Qa8+ $14 Kg7 63. Qc6) 62... Kg7 $11 {[%emt 0:00:02]} 63. Qd4 {[%emt 0:00:01]} Kg8 {[%emt 0:00:01]} 64. Qf4 {[%emt 0:00:02]} Qa2 {[%emt 0:00:02]} 65. Qf6 {[%emt 0:00:02]} Qd5+ {[%emt 0:00:01]} 66. Kh2 {[%emt 0:00:01]} Qe4 {[%emt 0:00:01]} 67. Qf4 {[%emt 0:00:06]} Qd5 {[%emt 0:00:02]} 68. Kg1 {[%emt 0:00:01]} Qd1+ {[%emt 0:00:01]} 69. Kh2 {[%emt 0:00:02]} Qd5 {[%emt 0:00:01]} 70. Qe3 {[%emt 0:00:00]} Kg7 {[%emt 0:00:01]} 71. f3 {[%emt 0:00:02]} Qa2+ {[%emt 0:00:02]} 72. Kh3 {[%emt 0:00:02]} Qb1 {[%emt 0:00:01]} 73. g4 {[%emt 0:00:02]} hxg4+ {[%emt 0:00:02]} 74. fxg4 {[%emt 0:00:02]} Qa2 {[%emt 0:00:03]} 75. Kg3 {[%emt 0:00:01]} Qc4 {[%emt 0:00:01]} 76. h5 {[%emt 0:00:02]} gxh5 {[%emt 0:00:03]} 77. Qg5+ {[%emt 0:00:03]} Kh7 {[%emt 0:00:00]} 78. Qf5+ {[%emt 0:00:05]} Kg7 {[%emt 0:00:02]} 79. Qg5+ {[%emt 0:00:02]} Kh7 {[%emt 0:00:01]} 80. Qxh5+ {[%emt 0:00:05]} Kg7 {[%emt 0:00:01]} 81. Qg5+ {[%emt 0:00:01]} Kh7 {[%emt 0:00:02]} 82. Qf5+ {[%emt 0:00:01]} Kg7 {[%emt 0:00:00]} 83. Qf6+ {[%emt 0:00:01]} Kg8 {[%emt 0:00:02]} 84. Kh4 {[%emt 0:00:01]} Qc2 {[%emt 0:00:03]} 85. e6 {[%emt 0:00:03]} fxe6 {[%emt 0:00:02]} 86. Qxe6+ {[%emt 0:00:02]} Kg7 {[%emt 0:00:01]} 87. Kg5 {[%emt 0:00:02]} Qc5+ {[%emt 0:00:02]} 88. Qf5 {[%emt 0:00:01]} Qe3+ {[%emt 0:00:01]} 89. Kh4 {[%emt 0:00:03]} Qe1+ {[%emt 0:00:01]} 90. Kh3 {[%emt 0:00:01]} Qh1+ {[%emt 0:00:01]} 91. Kg3 {[%emt 0:00:01]} Qg1+ {[%emt 0:00:01]} 92. Kh3 {[%emt 0:00:01]} Qh1+ {[%emt 0:00:01]} 93. Kg3 {[%emt 0:00:01]} Qg1+ {[%emt 0:00:01]} 1/2-1/2

[Event "Superbet Blitz Poland 2022"]
[Site "Warsaw"]
[Date "2022.05.22"]
[Round "9.4"]
[White "Duda, Jan-Krzysztof"]
[Black "Shevchenko, Kirill"]
[Result "1-0"]
[ECO "D15"]
[WhiteElo "2750"]
[BlackElo "2644"]
[Annotator "TA"]
[PlyCount "219"]
[EventDate "2022.05.22"]
[EventType "tourn"]
[EventCountry "POL"]
[SourceTitle "playchess.com"]
[Source "ChessBase"]
[SourceQuality "1"]
[TimeControl "300+2"]

{[%evp 56,219,47,34,54,45,57,0,0,-145,86,41,52,59,62,0,61,63,54,50,50,50,74,74,74,74,74,74,74,74,74,74,74,70,74,70,70,70,70,70,74,74,74,74,74,74,74,74,74,74,74,74,74,74,74,74,74,74,74,33,33,33,33,33,33,33,33,33,33,33,33,11,11,11,11,0,0,0,0,0,0,0,0,0,8,0,52,25,201,25,25,25,25,25,25,25,25,25,25,0,25,0,25,25,25,25,25,25,25,25,25,25,25,25,25,25,25,25,25,25,38,38,29952,29953,29954,29956,29956,29958,29958,29959,29958,29957,29959,29961,29961,29961,29961,29961,29964,29956,29966,29969,29968,29967,29964,29964,29972,29973,29974,29975,29975,29976,29989,29975,29987,29988,29989,29989,29994,29995,29995,29996,29996,29990,29997,29998]} 1. d4 {[%emt 0:00:01]} Nf6 {[%emt 0:00:01]} 2. c4 {[%emt 0:00:01]} c6 {[%emt 0:00:14]} 3. Nf3 {[%emt 0:00:01]} d5 {[%emt 0:00:01]} 4. e3 {[%emt 0:00:01]} Bf5 {[%emt 0:00:01]} 5. Nc3 {[%emt 0:00:01]} a6 {[%emt 0:00:02]} 6. Ne5 {[%emt 0:00:12]} Nbd7 {[%emt 0:00:02]} 7. Qb3 {[%emt 0:00:02]} Qc7 {[%emt 0:00:01]} 8. cxd5 {[%emt 0:00:04]} Nxe5 {[%emt 0:00:01]} 9. dxe5 {[%emt 0:00:02]} Nxd5 {[%emt 0:00:01]} 10. Bc4 {[%emt 0:00:02]} e6 {[%emt 0:00:14]} 11. e4 {[%emt 0:00:01]} Nxc3 {[%emt 0:00:02]} 12. exf5 {[%emt 0:00:02]} Qxe5+ {[%emt 0:00:17]} 13. Be3 {[%emt 0:00:01]} Nd5 {[%emt 0:00:01]} 14. Bxd5 {[%emt 0:00:20]} Qxd5 {[%emt 0:00:03]} 15. Qxb7 {[%emt 0:00:02]} c5 {[%emt 0:00:01]} 16. Qb6 {[%emt 0:00:04]} Be7 {[%emt 0:00:06]} 17. fxe6 {[%emt 0:00:05]} O-O {[%emt 0:00:03]} 18. exf7+ {[%emt 0:00:03]} Qxf7 {[%emt 0:00:09]} 19. O-O {[%emt 0:00:03]} Rfb8 {[%emt 0:00:48]} 20. Qc6 {[%emt 0:00:01]} Bf6 {[%emt 0:00:09]} 21. Rab1 {[%emt 0:00:32]} c4 {[%emt 0:00:58]} 22. Rfc1 {[%emt 0:00:23]} Rc8 {[%emt 0:00:18]} 23. Qa4 {[%emt 0:00:01]} Rab8 {[%emt 0:00:26]} 24. b4 {[%emt 0:00:57]} c3 {[%emt 0:00:31]} 25. Qb3 {[%emt 0:00:30]} Rc4 {[%emt 0:00:46]} 26. a3 {[%emt 0:00:11]} h5 {[%emt 0:00:07]} 27. Qc2 {[%emt 0:00:18]} Qe6 {[%emt 0:00:14]} 28. Rd1 {[%emt 0:00:07]} Qc6 {[%emt 0:00:06]} 29. h3 {[%emt 0:00:04]} h4 {[%emt 0:00:01]} 30. Bc5 {[%emt 0:00:40]} Re8 {[%emt 0:00:07]} 31. Qa2 {[%emt 0:00:44]} (31. f3 $14) 31... Qe6 $11 {[%emt 0:00:01]} 32. Rd6 {[%emt 0:00:01]} (32. Qc2 $11 {remains equal.}) 32... Qf7 $2 {[%emt 0:00:04]} (32... Qe2 $1 $17 {[%cal Re2a2] stays on course.} 33. Qxe2 Rxe2) 33. Qc2 {[%emt 0:00:02]} (33. Rxa6 $2 c2 34. Rc1 Re1+ $3 {[%mdl 512]} 35. Rxe1 c1=Q $19) 33... Rce4 {[%emt 0:00:03]} 34. Be3 {[%emt 0:00:05]} (34. Rxa6 Re1+ 35. Rxe1 Rxe1+ 36. Kh2 Be5+ 37. g3 Qf3) 34... Qc4 {[%emt 0:00:01]} 35. a4 {[%emt 0:00:05]} (35. Rbd1 $14) 35... Kh8 {[%emt 0:00:07]} (35... Be5 $11 36. Rd3 Bf6) 36. b5 $14 {[%emt 0:00:01]} Qxa4 {[%emt 0:00:07]} 37. Qxa4 {[%emt 0:00:07]} Rxa4 {[%emt 0:00:00]} 38. Rxa6 {[%emt 0:00:05]} (38. bxa6 c2 39. Re1 Rc8 $11) 38... c2 {[%emt 0:00:00] [#]} 39. Rc1 $1 {[%emt 0:00:01]} Rb4 {[%emt 0:00:00]} 40. Rc6 {[%emt 0:00:09]} Rxb5 {[%emt 0:00:03]} 41. R6xc2 {[%emt 0:00:01]} Rb4 {[%emt 0:00:03]} 42. Kf1 {[%emt 0:00:02]} Kh7 {[%emt 0:00:01]} 43. Rd1 {[%emt 0:00:05]} Kg6 {[%emt 0:00:01]} 44. Rd5 {[%emt 0:00:01]} Rb1+ {[%emt 0:00:02]} 45. Rc1 {[%emt 0:00:05]} Rxc1+ {[%emt 0:00:03]} 46. Bxc1 {[%emt 0:00:01]} Rd8 {[%emt 0:00:03]} 47. Rc5 {[%emt 0:00:04]} Rd1+ {[%emt 0:00:02]} 48. Ke2 {[%emt 0:00:00]} Rg1 {[%emt 0:00:02]} 49. Kf3 {[%emt 0:00:01]} Rd1 {[%emt 0:00:02]} 50. Be3 {[%emt 0:00:03]} Rb1 {[%emt 0:00:02]} 51. Rc4 {[%emt 0:00:01]} Rb2 {[%emt 0:00:01]} 52. Kg4 {[%emt 0:00:01]} Ra2 {[%emt 0:00:01]} 53. Re4 {[%emt 0:00:04]} Rc2 {[%emt 0:00:02]} 54. Kf3 {[%emt 0:00:02]} Ra2 {[%emt 0:00:00]} 55. Rg4+ {[%emt 0:00:02]} Kf5 {[%emt 0:00:02]} 56. Rf4+ {[%emt 0:00:02]} Kg6 {[%emt 0:00:01]} 57. Bd4 {[%emt 0:00:02]} Bxd4 {[%emt 0:00:07]} 58. Rxd4 {[%emt 0:00:01]} Kh5 {[%emt 0:00:01]} 59. Rd8 {[%emt 0:00:04]} g5 {[%emt 0:00:01]} 60. Rh8+ {[%emt 0:00:02]} Kg6 {[%emt 0:00:00]} 61. Re8 {[%emt 0:00:01]} Kf5 {[%emt 0:00:02]} 62. Rf8+ {[%emt 0:00:01]} Kg6 $1 {[%emt 0:00:01]} 63. Kg4 {[%emt 0:00:01]} Ra4+ {[%emt 0:00:05]} 64. f4 {[%emt 0:00:04]} gxf4 {[%emt 0:00:01]} 65. Kxh4 {[%emt 0:00:05]} Kg7 {[%emt 0:00:04]} 66. Rf5 {[%emt 0:00:01]} Kg6 {[%emt 0:00:01]} 67. Rf8 {[%emt 0:00:02]} Kg7 {[%emt 0:00:00]} 68. Rf5 {[%emt 0:00:01]} Kg6 {[%emt 0:00:01]} 69. Rg5+ {[%emt 0:00:01]} Kf6 {[%emt 0:00:01]} 70. Rg8 {[%emt 0:00:05]} Kf5 {[%emt 0:00:08]} (70... f3+ $1 $11 71. Kh5 Kf7) 71. Rf8+ {[%emt 0:00:02]} Ke5 $2 {[%emt 0:00:03] [#]} (71... Kg6 $11 {and Black has nothing to worry.}) 72. Kg4 $2 {[%emt 0:00:01]} (72. Kg5 $1 $18 {Threatening mate with Rf5+.} Ra2 73. Re8+ Kd6 74. Kxf4 Rxg2 75. h4) 72... Ra2 $11 {[%emt 0:00:01]} 73. Re8+ {[%emt 0:00:03]} Kf6 $1 {[%emt 0:00:01]} 74. Kf3 {[%emt 0:00:02]} Kf5 {[%emt 0:00:04]} 75. Rf8+ {[%emt 0:00:02]} Kg5 {[%emt 0:00:00]} 76. Rg8+ {[%emt 0:00:03]} (76. Rxf4 Ra3+ 77. Ke4 Ra4+ 78. Ke5 Rxf4 79. Kd5 Rf2 80. g3 Rf3 81. h4+ Kf5 82. Kd6 Rxg3 83. Kd5 Rh3 84. h5 Rxh5 85. Kd4 Kf4 86. Kd3 Rd5+ 87. Kc3 Ke3 88. Kc4 Rg5 89. Kb3 Kd3 90. Kb4 Rh5 91. Kb3 Rh4 92. Kb2 Rb4+ 93. Ka3 Kc3 94. Ka2 Ra4+ 95. Kb1 Ra7 96. Kc1 Ra1#) 76... Kf5 {[%emt 0:00:01]} 77. Rf8+ {[%emt 0:00:02]} Kg5 {[%emt 0:00:00]} 78. Re8 {[%emt 0:00:02]} (78. Rxf4 Ra3+ 79. Ke4 Ra4+ 80. Ke5 Rxf4 81. Kd5 Rh4 82. Ke6 Kf4 83. Kd6 Kg3 84. Ke5 Kxg2 85. Kd5 Kf3 86. Ke5 Rxh3 87. Kf5 Rh5+ 88. Ke6 Ke4 89. Kd6 Rf5 90. Ke6 Rd5 91. Kf6 Re5 92. Kg6 Rf5 93. Kg7 Kf4 94. Kg6 Kg4 95. Kh6 Rg5 96. Kh7 Kh5 97. Kh8 Kg6 98. Kg8 Rf5 99. Kh8 Rf8#) 78... Ra3+ {[%emt 0:00:01]} 79. Kf2 {[%emt 0:00:00]} Ra2+ {[%emt 0:00:01]} 80. Re2 {[%emt 0:00:01]} Ra3 {[%emt 0:00:01]} 81. Rb2 {[%emt 0:00:01]} Ra5 {[%emt 0:00:04]} 82. Rb3 {[%emt 0:00:02]} Rc5 {[%emt 0:00:02]} 83. Kf3 {[%emt 0:00:01]} Ra5 {[%emt 0:00:01]} 84. Rd3 {[%emt 0:00:03]} Rc5 {[%emt 0:00:01]} 85. Ke4 {[%emt 0:00:01]} Rc4+ {[%emt 0:00:08]} 86. Rd4 {[%emt 0:00:05]} Rc2 {[%emt 0:00:02]} 87. Rd5+ {[%emt 0:00:03]} Kg6 {[%emt 0:00:03]} 88. Kf3 {[%emt 0:00:02]} Ra2 $2 {[%emt 0:00:02][%mdl 8192]} (88... Kf6 $14) 89. h4 {[%emt 0:00:02]} Rb2 {[%emt 0:00:01]} 90. Rg5+ {[%emt 0:00:01]} Kh6 {[%emt 0:00:04]} 91. Kxf4 {[%emt 0:00:01]} Rb4+ {[%emt 0:00:01]} 92. Kg3 {[%emt 0:00:01]} Rb3+ {[%emt 0:00:02]} 93. Kh2 {[%emt 0:00:01]} Rb4 {[%emt 0:00:01]} 94. Kh3 {[%emt 0:00:01]} (94. g4 Ra4 $11) 94... Rb1 {[%emt 0:00:01]} 95. Ra5 {[%emt 0:00:01]} (95. g4 Rb3+ 96. Kh2 Rb4 $14) 95... Kg6 {[%emt 0:00:02]} 96. Ra6+ {[%emt 0:00:01]} Kg7 {[%emt 0:00:01]} 97. g3 {[%emt 0:00:01]} (97. g4 Rb3+ 98. Kh2 Rb2+ 99. Kh3 Rb3+ 100. Kh2 Rb2+ 101. Kg3 Rb3+ 102. Kh2 $11) 97... Rb4 {[%emt 0:00:01]} 98. h5 {[%emt 0:00:01]} ({Not} 98. g4 Rb3+ 99. Kh2 Rb2+ 100. Kh3 Rb3+ 101. Kh2 Rb2+ 102. Kh3 Rb3+ $11) 98... Rb1 {[%emt 0:00:03]} 99. Kh4 {[%emt 0:00:01]} Kh7 {[%emt 0:00:04]} 100. g4 {[%emt 0:00:02]} Rc1 {[%emt 0:00:03]} 101. Ra7+ {[%emt 0:00:02]} Kh8 {[%emt 0:00:01]} 102. h6 {[%emt 0:00:01]} Rc5 {[%emt 0:00:03]} 103. g5 {[%emt 0:00:01]} Re5 {[%emt 0:00:03]} 104. Kh5 {[%emt 0:00:02]} Re8 {[%emt 0:00:01]} 105. Ra5 {[%emt 0:00:03]} Rc8 {[%emt 0:00:02]} 106. Rf5 {[%emt 0:00:02]} Kh7 {[%emt 0:00:03]} 107. g6+ {[%emt 0:00:02]} Kg8 {[%emt 0:00:00]} 108. h7+ {[%emt 0:00:05]} Kg7 {[%emt 0:00:03]} 109. Rf7+ {[%emt 0:00:01]} Kh8 {[%emt 0:00:01]} 110. Kh6 {[%emt 0:00:02]} 1-0